bitfinex/quotes_BTCUSD_20251205
["timestamp","ask_amount","ask_price","bid_price","bid_amount"]
[1764940692203,0.01452,91103.0,91101.0,0.21953606]
[1764940692417,0.01452,91103.0,91100.0,0.01097694]
[1764940692418,0.01648,91102.0,91100.0,0.01097694]
[1764940692633,0.23052482,91097.0,91096.0,0.02150397]
[1764940692842,0.01097743,91096.0,91093.0,0.24105975]
[1764940693049,0.21955223,91095.0,91093.0,0.02150397]
[1764940693258,0.01097791,91092.0,91090.0,0.0174]
[1764940693464,0.23053623,91092.0,91090.0,0.0174]
[1764940693865,0.23053458,91093.0,91091.0,0.02150397]
[1764940694241,0.01097779,91093.0,91091.0,0.02150397]
[1764940694453,0.01097755,91095.0,91091.0,0.032482]
[1764940694656,0.23053111,91094.0,91091.0,0.032482]
[1764940694865,0.21955601,91093.0,91091.0,0.032482]
[1764940695065,0.23053111,91094.0,91091.0,0.25204243]
[1764940695270,0.01097767,91094.0,91091.0,0.25204243]
[1764940695667,0.23052284,91098.0,91094.0,0.01097767]
[1764940696026,0.23052104,91098.0,91095.0,0.01097755]
[1764940696212,0.21955135,91095.0,91093.0,0.23053362]
[1764940696511,0.23051193,91102.0,91094.0,0.01097767]
[1764940696730,0.29303677,91101.0,91094.0,0.01097767]
[1764940696932,0.21953896,91100.0,91094.0,0.01097767]
[1764940697155,0.21955407,91094.0,91091.0,0.24106407]
[1764940697280,0.01097827,91089.0,91088.0,0.0174]
[1764940697687,0.02745827,91089.0,91088.0,0.0174]
[1764940698712,0.2195703,91087.0,91086.0,6.552e-05]
[1764940698931,0.2360503,91087.0,91086.0,6.552e-05]
[1764940701012,0.2370503,91087.0,91086.0,6.552e-05]
[1764940701221,0.2614103,91087.0,91086.0,6.552e-05]
[1764940701630,0.001,91087.0,91086.0,0.22676823]
[1764940701829,0.001,91087.0,91086.0,0.2482722]
[1764940702799,0.001,91087.0,91086.0,0.22676823]
[1764940702999,0.001,91087.0,91086.0,0.2482722]
[1764940703602,0.23052936,91095.0,91092.0,0.21955754]
[1764940703824,0.02739291,91093.0,91092.0,0.21955754]
[1764940704380,0.25792832,91093.0,91090.0,0.23053913]
[1764940704783,0.23053684,91092.0,91089.0,0.25204569]
[1764940704921,0.02739291,91093.0,91091.0,0.21955828]
[1764940705119,0.02739291,91093.0,91092.0,0.21955824]
[1764940705347,0.21956065,91091.0,91088.0,0.01097839]
[1764940705545,0.01621,91089.0,91088.0,0.01097839]
[1764940705750,0.01621,91089.0,91086.0,0.01204415]
[1764940705951,0.23577582,91089.0,91086.0,0.23061204]
[1764940706362,0.2357803,91087.0,91086.0,6.552e-05]
[1764940706770,0.2592603,91087.0,91086.0,6.552e-05]
[1764940707858,0.2602603,91087.0,91086.0,6.552e-05]
[1764940709645,0.2592603,91087.0,91086.0,6.552e-05]
[1764940710051,0.2612603,91087.0,91086.0,6.552e-05]
[1764940711711,0.002,91087.0,91086.0,6.552e-05]
[1764940711913,0.002,91087.0,91086.0,0.21963823]
[1764940712063,0.002,91087.0,91086.0,6.552e-05]
[1764940712448,0.2215703,91087.0,91086.0,6.552e-05]
[1764940712855,0.002,91087.0,91086.0,6.552e-05]
[1764940713282,0.002,91087.0,91086.0,0.21963823]
[1764940713482,0.2377803,91087.0,91086.0,6.552e-05]
[1764940713683,0.2612603,91087.0,91086.0,6.552e-05]
[1764940715671,0.2377803,91087.0,91086.0,6.552e-05]
[1764940716289,0.2215703,91087.0,91086.0,6.552e-05]
[1764940717277,0.002,91087.0,91086.0,0.21963823]
[1764940717477,0.002,91087.0,91086.0,0.2482722]
[1764940719285,0.02739291,91093.0,91092.0,0.21955824]
[1764940719620,0.23050777,91104.0,91100.0,0.01097694]
[1764940719823,0.01097586,91109.0,91107.0,0.02150397]
[1764940720190,0.02739291,91108.0,91107.0,0.02150397]
[1764940720377,0.02739291,91108.0,91106.0,0.21952439]
[1764940720581,0.04360291,91108.0,91107.0,0.2195221]
[1764940720826,0.2304732,91117.0,91114.0,0.21950366]
[1764940720951,0.23046785,91119.0,91115.0,0.21950282]
[1764940721155,0.23128291,91120.0,91116.0,0.01097502]
[1764940721354,0.23128291,91120.0,91116.0,0.03247899]
[1764940721566,0.21949357,91119.0,91116.0,0.03247899]
[1764940721784,0.24225744,91120.0,91116.0,0.03247899]
[1764940721996,0.24225744,91120.0,91116.0,0.03254451]
[1764940722192,0.21948054,91125.0,91117.0,0.23047049]
[1764940722511,0.01097381,91126.0,91119.0,0.01097465]
[1764940722685,0.01097441,91121.0,91118.0,0.23047013]
[1764940723006,0.23046289,91121.0,91118.0,0.01097477]
[1764940723215,0.23046289,91121.0,91118.0,0.23046902]
[1764940723447,0.01097441,91121.0,91119.0,0.21949262]
[1764940723629,0.23127416,91123.0,91119.0,0.23046727]
[1764940723831,0.21948638,91122.0,91119.0,0.23046727]
[1764940724259,0.23127416,91123.0,91120.0,0.21949004]
[1764940724458,0.23127416,91123.0,91119.0,0.23046727]
[1764940724459,0.001,91121.0,91119.0,0.23046727]
[1764940724806,0.02276417,91123.0,91120.0,0.01097453]
[1764940725005,0.01097429,91122.0,91119.0,0.01097465]
[1764940725286,0.01097429,91122.0,91120.0,0.21949078]
[1764940725480,0.01179,91123.0,91120.0,0.01097453]
[1764940725658,0.01179,91123.0,91122.0,0.21948596]
[1764940725837,0.06252299,91127.0,91126.0,0.21947632]
[1764940726174,0.06252299,91127.0,91126.0,0.24098029]
[1764940726962,0.02276321,91131.0,91122.0,0.23046025]
[1764940726963,0.02276321,91131.0,91127.0,0.01097369]
[1764940727161,0.02739291,91129.0,91128.0,0.21947151]
[1764940728352,0.02739291,91129.0,91126.0,0.23045013]
[1764940728758,0.02739291,91129.0,91128.0,0.21947151]
[1764940728966,0.06252299,91131.0,91128.0,0.01097357]
[1764940729167,0.06252299,91132.0,91131.0,0.21946338]
[1764940729682,0.06252299,91133.0,91131.0,0.21946418]
[1764940729913,0.28198254,91133.0,91130.0,0.23044002]
[1764940730086,0.06352299,91131.0,91130.0,0.23044002]
[1764940730287,0.21946434,91131.0,91128.0,0.23044289]
[1764940730724,0.06252299,91131.0,91130.0,0.21946669]
[1764940730941,0.06252299,91132.0,91130.0,0.21946669]
[1764940731232,0.002,91131.0,91130.0,0.21946669]
[1764940731959,0.002,91131.0,91130.0,0.25523066]
[1764940732180,0.002,91131.0,91130.0,0.24810066]
[1764940732385,0.002,91131.0,91130.0,0.25523066]
[1764940733012,0.01097189,91142.0,91140.0,0.02150397]
[1764940733183,0.23040316,91145.0,91142.0,0.21943753]
[1764940733586,0.23040001,91146.0,91143.0,0.2194351]
[1764940733786,0.23040261,91145.0,91141.0,0.01097201]
[1764940733990,0.01097164,91144.0,91141.0,0.01097201]
[1764940734190,0.01097152,91145.0,91141.0,0.01097201]
[1764940734515,0.21943932,91142.0,91140.0,0.02150397]
[1764940734711,0.01097176,91143.0,91140.0,0.0324761]
[1764940735036,0.01258427,91146.0,91142.0,0.2194378]
[1764940735197,0.00161287,91146.0,91145.0,0.21943057]
[1764940735418,0.00161287,91146.0,91144.0,0.21943218]
[1764940735756,0.00161287,91146.0,91142.0,0.01097189]
[1764940735967,0.01097189,91142.0,91139.0,0.01736]
[1764940736157,0.21944046,91141.0,91139.0,0.01736]
[1764940736304,0.01097164,91144.0,91140.0,0.01097213]
[1764940736511,0.01097164,91144.0,91142.0,0.21943719]
[1764940737057,0.01097164,91144.0,91141.0,0.23041028]
[1764940737058,0.01097164,91144.0,91143.0,0.02150397]
[1764940737453,0.23040237,91145.0,91143.0,0.02150397]
[1764940737667,0.002,91144.0,91143.0,0.02150397]
[1764940738569,0.002,91144.0,91143.0,0.24093936]
[1764940738741,0.002,91144.0,91143.0,0.02150397]
[1764940739151,0.22143298,91144.0,91143.0,0.02150397]
[1764940739626,0.002,91144.0,91143.0,0.02150397]
[1764940739821,0.21943064,91145.0,91143.0,0.02150397]
[1764940740050,0.00161287,91146.0,91143.0,0.03247573]
[1764940740258,0.00161287,91146.0,91145.0,0.24093454]
[1764940740781,0.21942335,91148.0,91147.0,0.02150397]
[1764940740961,0.23041113,91142.0,91138.0,0.01097237]
[1764940741164,0.23041113,91142.0,91132.0,0.01810309]
[1764940741165,0.23608261,91140.0,91139.0,6.552e-05]
[1764940741368,0.23608261,91140.0,91139.0,0.01742552]
[1764940741563,0.21944261,91140.0,91139.0,0.01742552]
[1764940741974,0.21944261,91140.0,91139.0,0.03892949]
[1764940742153,0.28648552,91140.0,91139.0,6.552e-05]
[1764940742525,0.34900851,91140.0,91139.0,6.552e-05]
[1764940742956,0.35100851,91140.0,91139.0,6.552e-05]
[1764940744472,0.35262138,91140.0,91139.0,6.552e-05]
[1764940751990,0.36359519,91140.0,91139.0,6.552e-05]
[1764940765109,0.38723367,91140.0,91139.0,6.552e-05]
[1764940765309,0.39749267,91140.0,91139.0,6.552e-05]
[1764940765868,0.84755773,91140.0,91139.0,6.552e-05]
[1764940766464,0.73885267,91140.0,91139.0,6.552e-05]
[1764940766875,0.72859367,91140.0,91139.0,6.552e-05]
[1764940767075,0.73684987,91140.0,91139.0,6.552e-05]
[1764940767285,0.76638432,91140.0,91139.0,6.552e-05]
[1764940767516,0.77238432,91140.0,91139.0,0.00106552]
[1764940767714,0.87183318,91140.0,91139.0,0.00106552]
[1764940767912,0.87183318,91140.0,91092.0,0.00713]
[1764940767913,0.21954137,91099.0,91098.0,0.00713]
[1764940768247,0.0109773,91097.0,91093.0,0.00713]
[1764940768474,0.21955109,91095.0,91093.0,0.22678635]
[1764940768631,0.21955109,91095.0,91094.0,0.01736]
[1764940768977,0.25897342,91094.0,91093.0,0.00010063]
[1764940769095,0.23619342,91094.0,91093.0,0.00010063]
[1764940769507,0.01664,91094.0,91093.0,0.00010063]
[1764940769710,0.21955342,91094.0,91093.0,0.00010063]
[1764940770575,0.21955342,91094.0,91093.0,0.00710063]
[1764940770783,0.21955342,91094.0,91093.0,0.00010063]
[1764940771230,0.001,91094.0,91093.0,0.00310063]
[1764940771969,0.001,91094.0,91093.0,0.22265646]
[1764940772336,0.001,91094.0,91093.0,0.00310063]
[1764940772769,0.001,91094.0,91093.0,0.22265646]
[1764940775393,0.001,91094.0,91093.0,0.22978646]
[1764940776021,0.001,91094.0,91093.0,0.25129043]
[1764940776904,0.001,91094.0,91093.0,0.22978646]
[1764940777108,0.001,91094.0,91093.0,0.25129043]
[1764940777930,0.001,91094.0,91093.0,0.0246046]
[1764940778128,0.001,91094.0,91093.0,0.24416043]
[1764940778659,0.22055342,91094.0,91093.0,0.00310063]
[1764940779091,0.23719342,91094.0,91093.0,0.00310063]
[1764940779297,0.001,91094.0,91093.0,0.00310063]
[1764940780209,0.22055342,91094.0,91093.0,0.00310063]
[1764940780396,0.23719342,91094.0,91093.0,0.00310063]
[1764940780607,0.25997342,91094.0,91093.0,0.00310063]
[1764940780856,0.26158629,91094.0,91093.0,0.00310063]
[1764940784744,0.32410928,91094.0,91093.0,0.00310063]
[1764940786900,0.35707194,91094.0,91093.0,0.00310063]
[1764940790592,0.35607194,91094.0,91093.0,0.00010063]
[1764940790816,0.35707194,91094.0,91093.0,0.00310063]
[1764940794504,0.25512895,91094.0,91093.0,0.00310063]
[1764940794760,0.23806629,91094.0,91093.0,0.00310063]
[1764940794982,0.24904492,91094.0,91093.0,0.00310063]
[1764940797953,0.0135915,91094.0,91093.0,0.22265646]
[1764940798155,0.01197863,91094.0,91093.0,0.22978646]
[1764940798366,0.01197863,91094.0,91093.0,0.25129043]
[1764940798505,0.01097863,91094.0,91093.0,0.24829043]
[1764940798703,0.01097718,91098.0,91094.0,0.01097767]
[1764940799003,0.21954907,91096.0,91094.0,0.23052903]
[1764940799202,0.2195486,91096.0,91094.0,0.02150397]
[1764940799629,0.23052793,91097.0,91094.0,0.02150397]
[1764940799871,0.0109773,91097.0,91094.0,0.02150397]
[1764940800044,0.01097743,91096.0,91093.0,0.00010063]
[1764940800267,0.21955252,91095.0,91093.0,0.00010063]
[1764940800779,0.02195581,91098.0,91095.0,0.01097755]
[1764940800989,0.01097863,91098.0,91096.0,0.2195483]
[1764940801157,0.01097863,91098.0,91097.0,0.24105016]
[1764940801358,0.01097863,91098.0,91097.0,0.02150397]
[1764940801971,0.01097863,91098.0,91097.0,0.24105016]
[1764940802526,0.01097863,91098.0,91097.0,0.02150397]
[1764940803336,0.01197863,91098.0,91097.0,0.02450397]
[1764940803470,0.01197863,91098.0,91097.0,0.24405016]
[1764940804076,0.001,91098.0,91097.0,0.24405016]
[1764940804610,0.23036379,91100.0,91099.0,0.02150397]
[1764940804823,0.26332192,91100.0,91097.0,0.003]
[1764940804995,0.21954254,91099.0,91097.0,0.003]
[1764940805155,0.26332234,91100.0,91097.0,0.003]
[1764940805368,0.21954378,91098.0,91097.0,0.003]
[1764940805568,0.21954378,91098.0,91096.0,0.01097743]
[1764940806046,0.21954378,91098.0,91097.0,0.003]
[1764940806268,0.23052096,91098.0,91095.0,0.23052798]
[1764940806666,0.23152096,91098.0,91097.0,0.003]
[1764940807213,0.21955101,91095.0,91094.0,0.02150397]
[1764940807407,0.21955342,91094.0,91093.0,0.00010063]
[1764940807610,0.26144629,91094.0,91093.0,0.00010063]
[1764940808808,0.22116629,91094.0,91093.0,0.00010063]
[1764940809024,0.03296121,91096.0,91095.0,0.21955101]
[1764940809243,0.21954818,91097.0,91096.0,0.02150397]
[1764940809446,0.23052154,91098.0,91097.0,0.02150397]
[1764940810485,0.03295868,91100.0,91097.0,0.25202741]
[1764940810698,0.03295868,91100.0,91099.0,0.21954137]
[1764940810926,0.03295868,91100.0,91098.0,0.21954165]
[1764940811152,0.26347458,91100.0,91097.0,0.25702728]
[1764940811661,0.03295868,91100.0,91098.0,0.21954378]
[1764940812377,0.25249772,91100.0,91097.0,0.25202697]
[1764940812594,0.03395868,91100.0,91098.0,0.2195435]
[1764940812824,0.03295868,91100.0,91098.0,0.2195435]
[1764940813051,0.03395868,91100.0,91099.0,0.21954137]
[1764940813449,0.03295868,91100.0,91099.0,0.21954137]
[1764940813654,0.03395868,91100.0,91099.0,0.24817534]
[1764940813806,0.03395868,91100.0,91099.0,0.25530534]
[1764940814007,0.03295868,91100.0,91099.0,0.25530534]
[1764940814237,0.01097526,91114.0,91110.0,0.21951444]
[1764940814238,0.23048282,91114.0,91110.0,0.21951444]
[1764940814439,0.03295307,91111.0,91110.0,0.21951303]
[1764940814641,0.04851307,91111.0,91110.0,0.21951303]
[1764940815018,0.03295307,91111.0,91110.0,0.21951303]
[1764940815221,0.03295307,91111.0,91110.0,0.21951487]
[1764940815423,0.04851307,91111.0,91110.0,0.21951487]
[1764940815820,0.04951307,91111.0,91110.0,0.22151487]
[1764940816254,0.07423307,91111.0,91110.0,0.002]
[1764940816432,0.32279745,91111.0,91110.0,0.002]
[1764940816629,0.2953584,91111.0,91110.0,0.002]
[1764940817603,0.35788139,91111.0,91110.0,0.002]
[1764940820009,0.46677523,91111.0,91110.0,0.002]
[1764940820202,0.49036383,91111.0,91110.0,0.002]
[1764940820822,0.38146999,91111.0,91110.0,0.002]
[1764940821232,0.40306999,91111.0,91110.0,0.002]
[1764940821439,0.38146999,91111.0,91110.0,0.002]
[1764940821634,0.38146999,91111.0,91093.0,0.00010063]
[1764940821635,0.21955342,91094.0,91093.0,0.00010063]
[1764940821834,0.27401633,91094.0,91093.0,0.00010063]
[1764940822039,0.29873633,91094.0,91093.0,0.00010063]
[1764940822352,0.22192022,91094.0,91093.0,0.00010063]
[1764940823269,0.22292022,91094.0,91093.0,0.00310063]
[1764940823809,0.28544321,91094.0,91093.0,0.00310063]
[1764940824574,0.28444321,91094.0,91093.0,0.00010063]
[1764940824696,0.28544321,91094.0,91093.0,0.00310063]
[1764940825112,0.28444321,91094.0,91093.0,0.00010063]
[1764940825316,0.28544321,91094.0,91093.0,0.00210063]
[1764940825753,0.28444321,91094.0,91093.0,0.00010063]
[1764940825954,0.28544321,91094.0,91093.0,0.00110063]
[1764940826759,0.28444321,91094.0,91093.0,0.00110063]
[1764940827955,0.28544321,91094.0,91093.0,0.00110063]
[1764940828562,0.60844321,91094.0,91093.0,0.00110063]
[1764940828763,0.63200593,91094.0,91093.0,0.00110063]
[1764940828957,0.65360593,91094.0,91093.0,0.00110063]
[1764940830561,1.20843623,91094.0,91093.0,0.00110063]
[1764940831201,1.20743623,91094.0,91093.0,0.00010063]
[1764940831573,1.22043623,91094.0,91093.0,0.00210063]
[1764940831778,1.23679623,91094.0,91093.0,0.00210063]
[1764940833203,0.21964746,91055.0,91054.0,0.00023551]
[1764940833440,0.27495037,91055.0,91054.0,0.00035542]
[1764940833590,0.29889037,91055.0,91054.0,0.00035542]
[1764940833802,0.33186651,91055.0,91054.0,0.00035542]
[1764940834200,0.04449614,91055.0,91054.0,0.00035542]
[1764940834406,0.04449614,91055.0,91054.0,0.22100529]
[1764940834638,0.04549614,91055.0,91054.0,0.22400529]
[1764940834872,0.04549614,91055.0,91054.0,0.22300529]
[1764940835283,0.03397614,91055.0,91054.0,0.23013529]
[1764940835494,0.0109808,91068.0,91065.0,0.00030005]
[1764940835647,0.06252299,91069.0,91066.0,0.01128109]
[1764940835852,0.02739291,91075.0,91074.0,0.21960164]
[1764940836057,0.02739291,91075.0,91073.0,0.2196035]
[1764940836285,0.02739291,91075.0,91070.0,0.01098056]
[1764940836286,0.05478582,91075.0,91070.0,0.01098056]
[1764940836458,0.28536974,91075.0,91071.0,0.23058906]
[1764940836657,0.05478582,91075.0,91072.0,0.01098032]
[1764940837004,0.05478582,91075.0,91073.0,0.2196026]
[1764940837212,0.02739291,91075.0,91073.0,0.2196026]
[1764940837801,0.02939291,91075.0,91073.0,0.2196026]
[1764940838209,0.02739291,91075.0,91071.0,0.23058906]
[1764940838611,0.01098008,91074.0,91073.0,0.007]
[1764940838861,0.23058172,91074.0,91073.0,0.007]
[1764940839192,0.24697172,91074.0,91073.0,0.007]
[1764940839400,0.02737008,91074.0,91073.0,0.007]
[1764940839558,0.01639,91074.0,91073.0,0.22660405]
[1764940839738,0.02939291,91075.0,91074.0,0.21960164]
[1764940839970,0.02739291,91075.0,91073.0,0.21960397]
[1764940840144,0.001,91074.0,91073.0,0.22360397]
[1764940840552,0.02739291,91075.0,91074.0,0.21960164]
[1764940840775,0.02839291,91075.0,91074.0,0.22360164]
[1764940841115,0.02739291,91075.0,91074.0,0.21960164]
[1764940843044,0.02839291,91075.0,91074.0,0.22360164]
[1764940845424,0.26438214,91075.0,91074.0,0.004]
[1764940845600,0.28832214,91075.0,91074.0,0.004]
[1764940847427,0.352458,91075.0,91074.0,0.004]
[1764940852633,0.328518,91075.0,91074.0,0.004]
[1764940853051,0.351178,91075.0,91074.0,0.004]
[1764940853494,0.10891877,91075.0,91074.0,0.004]
[1764940853727,0.26599501,91075.0,91074.0,0.004]
[1764940854673,0.04639578,91075.0,91074.0,0.004]
[1764940855139,0.26599501,91075.0,91074.0,0.004]
[1764940856256,0.29042501,91075.0,91074.0,0.004]
[1764940856505,0.03000578,91075.0,91074.0,0.004]
[1764940857205,0.03000578,91075.0,91074.0,0.22360164]
[1764940857525,0.02839291,91075.0,91074.0,0.22360164]
[1764940858039,0.02839291,91075.0,91074.0,0.004]
[1764940858419,0.02839291,91075.0,91074.0,0.22360164]
[1764940858922,0.06785291,91075.0,91074.0,0.004]
[1764940859095,0.28745214,91075.0,91074.0,0.005]
[1764940859311,0.28645214,91075.0,91074.0,0.001]
[1764940859515,0.28845214,91075.0,91074.0,0.011]
[1764940859835,0.34897513,91075.0,91074.0,0.001]
[1764940860278,0.34997513,91075.0,91074.0,0.007]
[1764940860483,0.21964539,91056.0,91052.0,0.00713]
[1764940860635,0.24186746,91055.0,91052.0,0.00713]
[1764940860833,0.02222,91055.0,91052.0,0.23776524]
[1764940861036,0.01191,91082.0,91061.0,0.01098164]
[1764940861239,0.02739291,91062.0,91061.0,0.23061393]
[1764940861722,0.06252299,91069.0,91068.0,0.02150397]
[1764940862096,0.21962094,91066.0,91064.0,0.23060685]
[1764940862255,0.01503,91065.0,91062.0,0.23060996]
[1764940862449,0.24563474,91065.0,91062.0,0.23061149]
[1764940862692,0.24563474,91065.0,91061.0,0.23161446]
[1764940862693,0.21963058,91062.0,91061.0,0.001]
[1764940862902,0.23466058,91062.0,91061.0,0.001]
[1764940863115,0.25909058,91062.0,91061.0,0.001]
[1764940863494,0.35061935,91062.0,91061.0,0.001]
[1764940863924,0.21964746,91055.0,91054.0,0.00835542]
[1764940864340,0.21964535,91056.0,91054.0,0.00035542]
[1764940865055,0.21964535,91056.0,91054.0,0.00135542]
[1764940865359,0.02900578,91062.0,91054.0,0.00135542]
[1764940865360,0.01098092,91067.0,91063.0,0.21962779]
[1764940865686,0.23059754,91068.0,91066.0,0.00030005]
[1764940865891,0.21961852,91067.0,91066.0,0.00030005]
[1764940866617,0.23059754,91068.0,91066.0,0.00030005]
[1764940866819,0.21961852,91067.0,91066.0,0.00530005]
[1764940867247,0.23059754,91068.0,91066.0,0.00030005]
[1764940867514,0.02150397,91069.0,91068.0,0.24112008]
[1764940867723,0.02150397,91069.0,91068.0,0.24825008]
[1764940868149,0.02150397,91069.0,91068.0,0.22674611]
[1764940868317,0.02150397,91069.0,91068.0,0.24825008]
[1764940868728,0.02288947,91079.0,91076.0,0.23057482]
[1764940869022,0.05585652,91079.0,91076.0,0.23057482]
[1764940869274,0.23057725,91076.0,91072.0,0.01098032]
[1764940869487,0.01503,91076.0,91075.0,0.21959923]
[1764940870094,0.01097959,91078.0,91075.0,0.23057919]
[1764940870296,0.02443,91077.0,91076.0,0.007]
[1764940870515,0.01097959,91078.0,91076.0,0.001]
[1764940870715,0.23462446,91077.0,91076.0,0.001]
[1764940871192,0.21959696,91076.0,91074.0,0.01098008]
[1764940871393,0.08340677,91077.0,91075.0,0.001]
[1764940871726,0.23057445,91077.0,91075.0,0.22059921]
[1764940871883,0.001,91076.0,91075.0,0.23757917]
[1764940872079,0.25500264,91078.0,91076.0,0.001]
[1764940872505,0.01503,91077.0,91076.0,0.22059682]
[1764940872684,0.01503,91077.0,91076.0,0.001]
[1764940873276,0.01503,91077.0,91076.0,0.21959682]
[1764940873742,0.01603,91077.0,91076.0,0.22659682]
[1764940874342,0.01603,91077.0,91076.0,0.22759682]
[1764940875340,0.04046,91077.0,91076.0,0.22759682]
[1764940875588,0.01603,91077.0,91076.0,0.22759682]
[1764940875943,0.2600544,91077.0,91076.0,0.008]
[1764940876527,0.32419026,91077.0,91076.0,0.008]
[1764940877737,0.74406428,91077.0,91076.0,0.008]
[1764940877939,0.67075063,91077.0,91076.0,0.008]
[1764940878747,0.68097489,91077.0,91076.0,0.008]
[1764940878947,0.67997489,91077.0,91076.0,0.001]
[1764940879146,0.66975063,91077.0,91076.0,0.001]
[1764940879351,0.70943171,91077.0,91076.0,0.001]
[1764940879551,0.81913677,91077.0,91076.0,0.001]
[1764940879754,0.82013677,91077.0,91076.0,0.002]
[1764940880007,0.79067747,91077.0,91076.0,0.002]
[1764940880219,0.82010703,91077.0,91076.0,0.002]
[1764940880855,0.82310703,91077.0,91076.0,0.002]
[1764940881399,0.82310703,91077.0,91045.0,0.01098357]
[1764940881400,0.21964746,91055.0,91045.0,0.01098357]
[1764940881635,0.33650336,91055.0,91045.0,0.01098357]
[1764940881835,0.36093336,91055.0,91045.0,0.01098357]
[1764940882039,0.39390986,91055.0,91045.0,0.01098357]
[1764940882252,0.39390986,91055.0,91044.0,0.0283437]
[1764940882561,0.39390986,91055.0,91045.0,0.01098357]
[1764940882761,0.39390986,91055.0,91038.0,0.02449]
[1764940883006,0.39490986,91055.0,91054.0,0.00735542]
[1764940885940,0.51984972,91055.0,91054.0,0.00735542]
[1764940886137,0.73526986,91055.0,91054.0,0.00735542]
[1764940886789,0.73426986,91055.0,91054.0,0.00035542]
[1764940887012,0.73526986,91055.0,91054.0,0.00435542]
[1764940887810,0.73826986,91055.0,91054.0,0.00435542]
[1764940888094,0.73826986,91055.0,91054.0,0.00035542]
[1764940888095,0.75886986,91055.0,91054.0,0.00035542]
[1764940888518,0.76986986,91055.0,91054.0,0.00235542]
[1764940889379,0.74826986,91055.0,91054.0,0.00235542]
[1764940889574,0.74826986,91055.0,91017.0,0.31908179]
[1764940889575,0.01098599,91025.0,91020.0,0.21973189]
[1764940889803,0.03837914,91023.0,91020.0,0.00039789]
[1764940889978,0.02765,91021.0,91020.0,0.00039789]
[1764940890279,0.24737951,91021.0,91020.0,0.00039789]
[1764940890477,0.27224951,91021.0,91020.0,0.00039789]
[1764940890706,0.27224951,91021.0,91020.0,0.00139789]
[1764940890893,0.02765,91021.0,91020.0,0.00139789]
[1764940891091,0.02765,91021.0,91020.0,0.22112981]
[1764940891560,0.02965,91021.0,91020.0,0.01139789]
[1764940891782,0.27424951,91021.0,91020.0,0.01139789]
[1764940891968,0.27424951,91021.0,91020.0,0.01039789]
[1764940892271,0.27224951,91021.0,91020.0,0.00139789]
[1764940892693,0.27424951,91021.0,91020.0,0.00839789]
[1764940892896,0.27224951,91021.0,91020.0,0.00039789]
[1764940893028,0.27224951,91021.0,91020.0,0.00139789]
[1764940893228,0.27224951,91021.0,91020.0,0.00939789]
[1764940893229,0.27424951,91021.0,91020.0,0.00939789]
[1764940893909,0.24937951,91021.0,91020.0,0.00939789]
[1764940894561,0.27424951,91021.0,91020.0,0.00939789]
[1764940895260,0.002,91021.0,91020.0,0.00939789]
[1764940895466,0.23756951,91021.0,91020.0,0.01039923]
[1764940896208,0.32657537,91021.0,91020.0,0.01039923]
[1764940896349,0.35956714,91021.0,91020.0,0.01039923]
[1764940897411,0.35756714,91021.0,91020.0,0.00239923]
[1764940897612,0.33108427,91021.0,91020.0,0.00239923]
[1764940897815,0.26956128,91021.0,91020.0,0.00539923]
[1764940898035,0.25372128,91021.0,91020.0,0.00539923]
[1764940898349,0.29443128,91021.0,91020.0,0.00539923]
[1764940898745,0.35595427,91021.0,91020.0,0.00139923]
[1764940898909,0.35795427,91021.0,91020.0,0.00839923]
[1764940899245,0.35595427,91021.0,91020.0,0.00139923]
[1764940899706,0.27056128,91021.0,91020.0,0.00839923]
[1764940900114,0.29543128,91021.0,91020.0,0.00839923]
[1764940900611,0.27056128,91021.0,91020.0,0.00839923]
[1764940900828,0.25272128,91021.0,91020.0,0.00139923]
[1764940901286,0.03499177,91021.0,91020.0,0.22613115]
[1764940901504,0.03299177,91021.0,91020.0,0.22113115]
[1764940901727,0.03499177,91021.0,91020.0,0.22813115]
[1764940901954,0.26985128,91021.0,91020.0,0.00839923]
[1764940902695,0.29452128,91021.0,91020.0,0.00839923]
[1764940903796,0.35704427,91021.0,91020.0,0.00839923]
[1764940905767,0.35865714,91021.0,91020.0,0.00839923]
[1764940907021,0.38144659,91021.0,91020.0,0.00139923]
[1764940907291,0.37601714,91021.0,91020.0,0.00639923]
[1764940908340,0.35865714,91021.0,91020.0,0.00639923]
[1764940908545,0.37601714,91021.0,91020.0,0.00639923]
[1764940909598,0.69901714,91021.0,91020.0,0.00639923]
[1764940909805,0.60525974,91018.0,91017.0,0.08835694]
[1764940910045,0.62078721,91018.0,91017.0,0.08835694]
[1764940910259,0.66281721,91018.0,91017.0,0.08835694]
[1764940910512,0.69250054,91018.0,91017.0,0.08835694]
[1764940910736,0.70986054,91018.0,91017.0,0.08835694]
[1764940910937,0.73532956,91018.0,91017.0,0.09435694]
[1764940911287,0.60840325,91018.0,91017.0,0.09435694]
[1764940911488,0.60229422,91018.0,91017.0,0.09435694]
[1764940911717,0.66481721,91018.0,91017.0,0.09435694]
[1764940911919,0.64745721,91018.0,91017.0,0.09435694]
[1764940912305,0.66481721,91018.0,91017.0,0.09435694]
[1764940913431,0.68829018,91018.0,91017.0,0.09435694]
[1764940913627,0.79799524,91018.0,91017.0,0.09435694]
[1764940914011,0.81959524,91018.0,91017.0,0.09435694]
[1764940914374,1.40656624,91018.0,91017.0,0.09435694]
[1764940914849,1.40656624,91018.0,91000.0,28.92613]
[1764940914850,2.65473079,91001.0,91000.0,28.92613]
[1764940915066,2.65473079,91001.0,91000.0,28.37500219]
[1764940915067,2.67981663,91001.0,91000.0,28.37500219]
[1764940915206,2.1171438,91001.0,91000.0,28.37500219]
[1764940915401,2.22814431,91001.0,91000.0,28.37500219]
[1764940915609,2.3099757,91001.0,91000.0,28.37500219]
[1764940915810,2.3100157,91001.0,91000.0,28.37559146]
[1764940916011,2.33740861,91001.0,91000.0,28.37559146]
[1764940916427,0.6659523,91001.0,91000.0,28.37559146]
[1764940916632,0.34240933,91001.0,91000.0,28.37559146]
[1764940916838,0.09223153,91001.0,91000.0,28.37559146]
[1764940917021,0.08040153,91001.0,91000.0,28.37559146]
[1764940917217,0.05300862,91001.0,91000.0,28.37559146]
[1764940917419,0.03300862,91001.0,91000.0,28.37559146]
[1764940917646,0.09753161,91001.0,91000.0,28.37559146]
[1764940918098,0.09553161,91001.0,91000.0,28.37559146]
[1764940918312,0.31530941,91001.0,91000.0,28.37559146]
[1764940918892,0.33875941,91001.0,91000.0,28.37559146]
[1764940919292,0.14837452,91001.0,91000.0,28.37559146]
[1764940919495,0.12292452,91001.0,91000.0,28.37559146]
[1764940919876,0.06240153,91001.0,91000.0,28.37559146]
[1764940920431,0.03500862,91001.0,91000.0,28.62754167]
[1764940920577,0.002,91001.0,91000.0,28.64904564]
[1764940921193,0.00039747,91018.0,91017.0,0.24124313]
[1764940921402,0.03356,91054.0,91026.0,0.24122141]